[Event "*** Titled Tuesday Blitz"]
[Site "Chess.com"]
[Date "2020.12.29"]
[Round "8"]
[White "SanchezKelvin"]
[Black "maheswaran26"]
[Result "1-0"]
[WhiteElo "2436"]
[BlackElo "2235"]
[TimeControl "180+1"]
[EndTime "11:26:47 PST"]
[Termination "SanchezKelvin won on time"]

1. d4 {[%clk 0:03:00.9]} 1... Nf6 {[%clk 0:02:58.4]} 2. c4 {[%clk 0:03:00.7]}
2... g6 {[%clk 0:02:56.9]} 3. Nf3 {[%clk 0:03:00.7]} 3... Bg7 {[%clk 0:02:56.7]}
4. g3 {[%clk 0:03:00.6]} 4... O-O {[%clk 0:02:55.7]} 5. Bg2 {[%clk 0:03:01.5]}
5... d6 {[%clk 0:02:55.8]} 6. O-O {[%clk 0:02:59.8]} 6... Nbd7 {[%clk
0:02:55.6]} 7. Nc3 {[%clk 0:02:59.6]} 7... e5 {[%clk 0:02:55.6]} 8. e4 {[%clk
0:02:59.3]} 8... c6 {[%clk 0:02:52.1]} 9. dxe5 {[%clk 0:02:58.4]} 9... dxe5
{[%clk 0:02:50.9]} 10. h3 {[%clk 0:02:55.4]} 10... Qc7 {[%clk 0:02:43]} 11. Be3
{[%clk 0:02:55.4]} 11... Re8 {[%clk 0:02:40.3]} 12. Qc2 {[%clk 0:02:50.4]} 12...
Bf8 {[%clk 0:02:37.3]} 13. Rad1 {[%clk 0:02:50.1]} 13... a5 {[%clk 0:02:35.3]}
14. a4 {[%clk 0:02:45.3]} 14... Bc5 {[%clk 0:02:32.8]} 15. Qe2 {[%clk
0:02:42.8]} 15... Bxe3 {[%clk 0:02:14.9]} 16. Qxe3 {[%clk 0:02:41.1]} 16... b6
{[%clk 0:02:14.1]} 17. Nd2 {[%clk 0:02:37.8]} 17... Nc5 {[%clk 0:02:13.5]} 18.
f4 {[%clk 0:02:30.1]} 18... exf4 {[%clk 0:02:09.5]} 19. gxf4 {[%clk 0:02:29.9]}
19... Nh5 {[%clk 0:01:17.8]} 20. e5 {[%clk 0:02:29.6]} 20... f6 {[%clk 0:01:15]}
21. Rde1 {[%clk 0:02:26.3]} 21... fxe5 {[%clk 0:01:04.3]} 22. fxe5 {[%clk
0:02:25.3]} 22... Bf5 {[%clk 0:01:03]} 23. Nde4 {[%clk 0:02:13.5]} 23... Bxe4
{[%clk 0:01:00.5]} 24. Nxe4 {[%clk 0:02:13.2]} 24... Nxe4 {[%clk 0:00:19.1]} 25.
Bxe4 {[%clk 0:02:08.7]} 25... Kg7 {[%clk 0:00:12.5]} 26. Qc3 {[%clk 0:02:06.9]}
26... Qxe5 {[%clk 0:00:10.8]} 27. Qxe5+ {[%clk 0:02:04.2]} 27... Rxe5 {[%clk
0:00:10.7]} 28. Bxc6 {[%clk 0:02:04.7]} 28... Rxe1 {[%clk 0:00:08.8]} 29. Rxe1
{[%clk 0:02:05.2]} 29... Rd8 {[%clk 0:00:09.3]} 30. Bd5 {[%clk 0:02:04.7]} 30...
Kf6 {[%clk 0:00:08.1]} 31. Re6+ {[%clk 0:02:04.1]} 31... Kg5 {[%clk 0:00:07.9]}
32. Rxb6 {[%clk 0:02:04.3]} 32... Re8 {[%clk 0:00:07.6]} 33. Re6 {[%clk
0:02:04.1]} 33... Rb8 {[%clk 0:00:06.5]} 34. Re2 {[%clk 0:02:02.1]} 34... Nf4
{[%clk 0:00:06.4]} 35. Rh2 {[%clk 0:02:00.3]} 35... Kh4 {[%clk 0:00:05.5]} 36.
Rd2 {[%clk 0:01:54.3]} 36... Kg3 {[%clk 0:00:04.4]} 37. Bg2 {[%clk 0:01:51]}
37... Re8 {[%clk 0:00:03.1]} 38. Rd1 {[%clk 0:01:47.8]} 38... Nxg2 {[%clk
0:00:01.2]} 39. c5 {[%clk 0:01:46.1]} 1-0

[Event "*** Titled Tuesday Blitz"]
[Site "Chess.com"]
[Date "2020.12.29"]
[Round "8"]
[White "sopo-tereladze"]
[Black "brunomorado"]
[Result "1-0"]
[WhiteElo "2288"]
[BlackElo "2394"]
[TimeControl "180+1"]
[EndTime "11:26:48 PST"]
[Termination "sopo-tereladze won by resignation"]

1. d4 {[%clk 0:03:00.9]} 1... d5 {[%clk 0:02:59.2]} 2. Nf3 {[%clk 0:03:01.2]}
2... Nf6 {[%clk 0:02:59.5]} 3. Bf4 {[%clk 0:03:01.4]} 3... Bf5 {[%clk
0:02:59.3]} 4. e3 {[%clk 0:03:01.8]} 4... e6 {[%clk 0:02:59.6]} 5. Bd3 {[%clk
0:03:02.3]} 5... Bg4 {[%clk 0:02:59.3]} 6. h3 {[%clk 0:03:01.5]} 6... Bh5 {[%clk
0:02:58.5]} 7. c3 {[%clk 0:03:01.9]} 7... Bd6 {[%clk 0:02:58.3]} 8. Qb3 {[%clk
0:02:57.8]} 8... Nbd7 {[%clk 0:02:44.6]} 9. Bxd6 {[%clk 0:02:39.5]} 9... cxd6
{[%clk 0:02:45.5]} 10. Qxb7 {[%clk 0:02:35]} 10... Bxf3 {[%clk 0:02:32.5]} 11.
gxf3 {[%clk 0:02:34.3]} 11... Rb8 {[%clk 0:02:32.6]} 12. Qa6 {[%clk 0:02:32.4]}
12... Rb6 {[%clk 0:02:19.3]} 13. Qa3 {[%clk 0:02:31.4]} 13... O-O {[%clk
0:02:15.4]} 14. Nd2 {[%clk 0:02:30.9]} 14... e5 {[%clk 0:02:15]} 15. b3 {[%clk
0:02:24.2]} 15... Re8 {[%clk 0:02:00.7]} 16. O-O {[%clk 0:02:19.2]} 16... Qc8
{[%clk 0:01:52.6]} 17. Rac1 {[%clk 0:02:16.5]} 17... Nf8 {[%clk 0:01:48.3]} 18.
Kh2 {[%clk 0:02:15.1]} 18... e4 {[%clk 0:01:44.1]} 19. Be2 {[%clk 0:02:11.5]}
19... exf3 {[%clk 0:01:21.2]} 20. Bxf3 {[%clk 0:02:12.4]} 20... Ne4 {[%clk
0:01:21.8]} 21. Nxe4 {[%clk 0:02:04.6]} 21... dxe4 {[%clk 0:01:20.8]} 22. Bg2
{[%clk 0:02:05.5]} 22... d5 {[%clk 0:01:20.2]} 23. c4 {[%clk 0:02:04.3]} 23...
dxc4 {[%clk 0:01:03.8]} 24. Rxc4 {[%clk 0:02:05.2]} 24... Qb8+ {[%clk
0:01:03.9]} 25. Kh1 {[%clk 0:02:03.6]} 25... Ng6 {[%clk 0:00:59.9]} 26. Rfc1
{[%clk 0:02:01.5]} 26... Nh4 {[%clk 0:00:58.4]} 27. Qc5 {[%clk 0:01:58.4]} 27...
Rg6 {[%clk 0:00:47.2]} 28. Qc8 {[%clk 0:01:52.8]} 28... Kf8 {[%clk 0:00:07.9]}
29. Qxb8 {[%clk 0:01:50.8]} 29... Rxb8 {[%clk 0:00:07.8]} 30. Bxe4 {[%clk
0:01:47.3]} 30... Rf6 {[%clk 0:00:07.8]} 31. Rc8+ {[%clk 0:01:31.5]} 31... Rxc8
{[%clk 0:00:06.3]} 32. Rxc8+ {[%clk 0:01:32.4]} 32... Ke7 {[%clk 0:00:07.2]} 33.
Rc7+ {[%clk 0:01:32.4]} 33... Kd6 {[%clk 0:00:07]} 34. Rc6+ {[%clk 0:01:32.1]}
34... Kd7 {[%clk 0:00:06.8]} 35. Rxf6 {[%clk 0:01:33]} 35... gxf6 {[%clk
0:00:07.7]} 36. Kh2 {[%clk 0:01:30.7]} 36... f5 {[%clk 0:00:08.1]} 37. Kg3
{[%clk 0:01:29]} 37... fxe4 {[%clk 0:00:08.2]} 38. Kxh4 {[%clk 0:01:28.6]} 1-0

[Event "*** Titled Tuesday Blitz"]
[Site "Chess.com"]
[Date "2020.12.29"]
[Round "8"]
[White "Alexey_Ustinov"]
[Black "CM_rui"]
[Result "0-1"]
[WhiteElo "2446"]
[BlackElo "2358"]
[TimeControl "180+1"]
[EndTime "11:26:50 PST"]
[Termination "CM_rui won by resignation"]

1. d4 {[%clk 0:02:52.4]} 1... Nf6 {[%clk 0:03:00.1]} 2. Nf3 {[%clk 0:02:52]}
2... e6 {[%clk 0:03:01]} 3. Bf4 {[%clk 0:02:51.1]} 3... d5 {[%clk 0:03:00.5]} 4.
e3 {[%clk 0:02:50.9]} 4... c5 {[%clk 0:02:59.6]} 5. c3 {[%clk 0:02:50.5]} 5...
Nc6 {[%clk 0:02:59.8]} 6. Nbd2 {[%clk 0:02:50]} 6... Bd6 {[%clk 0:03:00.1]} 7.
Bg3 {[%clk 0:02:49.7]} 7... O-O {[%clk 0:02:58.6]} 8. Ne5 {[%clk 0:02:48.2]}
8... Bxe5 {[%clk 0:02:57.7]} 9. dxe5 {[%clk 0:02:47.3]} 9... Nd7 {[%clk
0:02:58.1]} 10. f4 {[%clk 0:02:47.2]} 10... f6 {[%clk 0:02:53.2]} 11. Bh4 {[%clk
0:02:44]} 11... Qb6 {[%clk 0:02:46.6]} 12. exf6 {[%clk 0:02:41.2]} 12... Nxf6
{[%clk 0:02:41.6]} 13. Qb3 {[%clk 0:02:30.5]} 13... Qc7 {[%clk 0:02:39]} 14. Be2
{[%clk 0:02:26.1]} 14... Kh8 {[%clk 0:02:32.6]} 15. O-O {[%clk 0:02:24.7]} 15...
b6 {[%clk 0:02:15.4]} 16. Nf3 {[%clk 0:02:16.2]} 16... Ne4 {[%clk 0:02:03]} 17.
Rad1 {[%clk 0:02:11.3]} 17... Bb7 {[%clk 0:01:58.1]} 18. Bb5 {[%clk 0:02:09.1]}
18... c4 {[%clk 0:01:47.3]} 19. Qc2 {[%clk 0:02:05.4]} 19... Ne7 {[%clk
0:01:44.2]} 20. Qe2 {[%clk 0:01:54.6]} 20... Nf5 {[%clk 0:01:36.3]} 21. Bf2
{[%clk 0:01:52.2]} 21... Nxf2 {[%clk 0:01:32.2]} 22. Rxf2 {[%clk 0:01:48.2]}
22... Qc5 {[%clk 0:01:32.3]} 23. Bd7 {[%clk 0:01:45.2]} 23... Nxe3 {[%clk
0:01:23.6]} 24. Re1 {[%clk 0:01:43]} 24... Ng4 {[%clk 0:01:23.4]} 25. Bxe6
{[%clk 0:01:39.4]} 25... Qxf2+ {[%clk 0:01:22.1]} 26. Qxf2 {[%clk 0:01:40.3]}
26... Nxf2 {[%clk 0:01:22.8]} 27. Kxf2 {[%clk 0:01:41.2]} 27... Rxf4 {[%clk
0:01:22.9]} 28. Kg3 {[%clk 0:01:36.6]} 28... Raf8 {[%clk 0:01:17.5]} 29. Re5
{[%clk 0:01:31.9]} 29... Re4 {[%clk 0:01:08.5]} 30. Rxe4 {[%clk 0:01:13.6]}
30... dxe4 {[%clk 0:01:09.4]} 31. Ng5 {[%clk 0:01:12.3]} 31... h6 {[%clk
0:01:02.4]} 32. Nf7+ {[%clk 0:01:11]} 32... Kh7 {[%clk 0:01:03]} 33. Bxc4 {[%clk
0:01:10.4]} 33... e3 {[%clk 0:01:02.5]} 34. Nd6 {[%clk 0:01:09.4]} 34... Bc6
{[%clk 0:00:56.1]} 35. Bd3+ {[%clk 0:00:55.1]} 35... g6 {[%clk 0:00:55.6]} 36.
Nc4 {[%clk 0:00:53.6]} 36... Bb5 {[%clk 0:00:44.3]} 37. b3 {[%clk 0:00:52.4]}
37... Rd8 {[%clk 0:00:41.3]} 38. Be2 {[%clk 0:00:51.9]} 38... Bxc4 {[%clk
0:00:41.5]} 0-1

[Event "*** Titled Tuesday Blitz"]
[Site "Chess.com"]
[Date "2020.12.29"]
[Round "8"]
[White "lelajavakhishvili"]
[Black "jacky72"]
[Result "0-1"]
[WhiteElo "2510"]
[BlackElo "2780"]
[TimeControl "180+1"]
[EndTime "11:26:53 PST"]
[Termination "jacky72 won by checkmate"]

1. d4 {[%clk 0:03:00.9]} 1... Nf6 {[%clk 0:02:58.8]} 2. c4 {[%clk 0:03:00.8]}
2... g6 {[%clk 0:02:59.2]} 3. Nf3 {[%clk 0:03:00]} 3... Bg7 {[%clk 0:03:00.1]}
4. g3 {[%clk 0:03:00.4]} 4... O-O {[%clk 0:03:01]} 5. Bg2 {[%clk 0:03:00.8]}
5... d6 {[%clk 0:03:01.9]} 6. O-O {[%clk 0:03:00.9]} 6... Nc6 {[%clk 0:03:02.8]}
7. Nc3 {[%clk 0:03:00.8]} 7... Bf5 {[%clk 0:03:03.3]} 8. d5 {[%clk 0:02:31.9]}
8... Na5 {[%clk 0:03:02.4]} 9. Nd2 {[%clk 0:02:31.9]} 9... c5 {[%clk 0:03:02.4]}
10. e4 {[%clk 0:02:30.9]} 10... Bd7 {[%clk 0:03:02.1]} 11. Rb1 {[%clk
0:02:24.7]} 11... a6 {[%clk 0:03:02.6]} 12. b3 {[%clk 0:02:22.3]} 12... b5
{[%clk 0:03:02.3]} 13. Bb2 {[%clk 0:02:22.2]} 13... Rb8 {[%clk 0:03:00.8]} 14.
Ba1 {[%clk 0:02:20.4]} 14... e5 {[%clk 0:03:00.5]} 15. h3 {[%clk 0:01:57.3]}
15... Ne8 {[%clk 0:02:58.6]} 16. f4 {[%clk 0:01:55.1]} 16... f5 {[%clk
0:02:54.4]} 17. Ne2 {[%clk 0:01:44.8]} 17... fxe4 {[%clk 0:02:52.6]} 18. fxe5
{[%clk 0:01:35]} 18... Rxf1+ {[%clk 0:02:49.7]} 19. Qxf1 {[%clk 0:01:17.1]}
19... dxe5 {[%clk 0:02:50.3]} 20. Nc3 {[%clk 0:01:03.1]} 20... Nd6 {[%clk
0:02:46.8]} 21. Ndxe4 {[%clk 0:01:00.9]} 21... Nxe4 {[%clk 0:02:46.7]} 22. Nxe4
{[%clk 0:01:01]} 22... bxc4 {[%clk 0:02:43.6]} 23. bxc4 {[%clk 0:00:43.6]} 23...
Rxb1 {[%clk 0:02:44.5]} 24. Qxb1 {[%clk 0:00:42.7]} 24... Nxc4 {[%clk
0:02:45.4]} 25. Nxc5 {[%clk 0:00:42.1]} 25... Bb5 {[%clk 0:02:43.1]} 26. a4
{[%clk 0:00:39.3]} 26... Qc8 {[%clk 0:02:28.4]} 27. Ne6 {[%clk 0:00:33]} 27...
Bxa4 {[%clk 0:02:28.3]} 28. Qb4 {[%clk 0:00:23.4]} 28... Bd7 {[%clk 0:02:16.1]}
29. Nxg7 {[%clk 0:00:21.9]} 29... Kxg7 {[%clk 0:02:17]} 30. Qe7+ {[%clk
0:00:21.8]} 30... Kg8 {[%clk 0:02:17.7]} 31. d6 {[%clk 0:00:21.3]} 31... Qc5+
{[%clk 0:02:15.2]} 32. Kh2 {[%clk 0:00:20.9]} 32... Qxd6 {[%clk 0:02:15.9]} 33.
Qd8+ {[%clk 0:00:20]} 33... Kg7 {[%clk 0:02:12.3]} 34. Bc3 {[%clk 0:00:17.3]}
34... a5 {[%clk 0:02:10.1]} 35. Bxa5 {[%clk 0:00:15.7]} 35... Nxa5 {[%clk
0:02:06.4]} 36. Qxa5 {[%clk 0:00:16.6]} 36... h5 {[%clk 0:02:00.9]} 37. Qd8
{[%clk 0:00:16.4]} 37... Qe6 {[%clk 0:01:59.3]} 38. h4 {[%clk 0:00:16]} 38... e4
{[%clk 0:01:53.8]} 39. Bf1 {[%clk 0:00:15.8]} 39... e3 {[%clk 0:01:53.2]} 40.
Kg1 {[%clk 0:00:09.8]} 40... Bc6 {[%clk 0:01:46.8]} 41. Qd4+ {[%clk 0:00:08.9]}
41... Kh7 {[%clk 0:01:45.9]} 42. Bc4 {[%clk 0:00:08.7]} 42... e2 {[%clk
0:01:42.2]} 43. Bxe6 {[%clk 0:00:04.6]} 43... e1=Q+ {[%clk 0:01:41.5]} 44. Kh2
{[%clk 0:00:05.3]} 44... Qh1# {[%clk 0:01:41.9]} 0-1

[Event "*** Titled Tuesday Blitz"]
[Site "Chess.com"]
[Date "2020.12.29"]
[Round "8"]
[White "Roza_Idrisova"]
[Black "dosto07"]
[Result "1/2-1/2"]
[WhiteElo "2170"]
[BlackElo "2279"]
[TimeControl "180+1"]
[EndTime "11:26:53 PST"]
[Termination "Game drawn by agreement"]

1. d4 {[%clk 0:03:00.9]} 1... d5 {[%clk 0:02:59]} 2. Nf3 {[%clk 0:03:01]} 2...
Nf6 {[%clk 0:02:58.2]} 3. Bg5 {[%clk 0:03:00.2]} 3... Ne4 {[%clk 0:02:56.9]} 4.
Bf4 {[%clk 0:02:59.4]} 4... c5 {[%clk 0:02:57.4]} 5. c3 {[%clk 0:02:59.4]} 5...
Nc6 {[%clk 0:02:56.5]} 6. e3 {[%clk 0:02:59]} 6... Qb6 {[%clk 0:02:54.8]} 7. Qb3
{[%clk 0:02:58.3]} 7... c4 {[%clk 0:02:53.9]} 8. Qxb6 {[%clk 0:02:58.3]} 8...
axb6 {[%clk 0:02:54.4]} 9. Nbd2 {[%clk 0:02:58.6]} 9... Bf5 {[%clk 0:02:44.4]}
10. a3 {[%clk 0:02:58.3]} 10... b5 {[%clk 0:02:43.8]} 11. Rc1 {[%clk 0:02:57.6]}
11... e6 {[%clk 0:02:43.4]} 12. Be2 {[%clk 0:02:56.5]} 12... Be7 {[%clk
0:02:43]} 13. h3 {[%clk 0:02:56.8]} 13... h6 {[%clk 0:02:43.1]} 14. g4 {[%clk
0:02:56.8]} 14... Bg6 {[%clk 0:02:30.4]} 15. Ne5 {[%clk 0:02:54.9]} 15... Nxe5
{[%clk 0:02:28.6]} 16. Bxe5 {[%clk 0:02:54.7]} 16... f6 {[%clk 0:02:25.9]} 17.
Bh2 {[%clk 0:02:54]} 17... h5 {[%clk 0:02:24.6]} 18. f3 {[%clk 0:02:52.1]} 18...
Nxd2 {[%clk 0:02:23.7]} 19. Kxd2 {[%clk 0:02:51.7]} 19... hxg4 {[%clk
0:02:23.6]} 20. hxg4 {[%clk 0:02:51.4]} 20... Kd7 {[%clk 0:02:20.8]} 21. Bg3
{[%clk 0:02:51]} 21... Bd6 {[%clk 0:02:18.5]} 22. Bxd6 {[%clk 0:02:49.5]} 22...
Kxd6 {[%clk 0:02:18.7]} 23. Rcg1 {[%clk 0:02:49]} 23... e5 {[%clk 0:02:12.1]}
24. f4 {[%clk 0:02:41.2]} 24... exf4 {[%clk 0:02:04]} 25. exf4 {[%clk
0:02:40.3]} 25... Be4 {[%clk 0:02:03.8]} 26. Rxh8 {[%clk 0:02:36.8]} 26... Rxh8
{[%clk 0:02:03.2]} 27. g5 {[%clk 0:02:32.3]} 27... f5 {[%clk 0:01:52.8]} 28. Rg3
{[%clk 0:02:21.9]} 28... Rh2 {[%clk 0:01:50.1]} 29. Ke3 {[%clk 0:02:21.3]} 29...
b6 {[%clk 0:01:42]} 30. Bf3 {[%clk 0:02:19.1]} 30... Rxb2 {[%clk 0:01:36]} 31.
Bxe4 {[%clk 0:02:19.1]} 31... dxe4 {[%clk 0:01:35.3]} 32. Rh3 {[%clk 0:02:17.6]}
32... Rc2 {[%clk 0:01:32.9]} 33. Rh7 {[%clk 0:02:17.2]} 33... Rxc3+ {[%clk
0:01:33]} 34. Ke2 {[%clk 0:02:17.3]} 34... Rf3 {[%clk 0:01:29.7]} 35. Rxg7
{[%clk 0:02:18]} 35... Rxf4 {[%clk 0:01:29.1]} 36. Rf7 {[%clk 0:02:15.5]} 36...
Ke6 {[%clk 0:01:19.8]} 37. Rf6+ {[%clk 0:02:13.1]} 37... Kd5 {[%clk 0:01:17.1]}
38. Rxb6 {[%clk 0:02:12.7]} 38... Kxd4 {[%clk 0:01:14.9]} 39. Rxb5 {[%clk
0:02:12.7]} 39... Rf3 {[%clk 0:01:10.2]} 40. g6 {[%clk 0:02:10.8]} 40... f4
{[%clk 0:01:09.8]} 41. Rg5 {[%clk 0:02:07.7]} 41... Rxa3 {[%clk 0:01:01.7]} 42.
g7 {[%clk 0:02:07.3]} 42... Ra2+ {[%clk 0:00:59.4]} 43. Ke1 {[%clk 0:02:06.2]}
43... Ra1+ {[%clk 0:00:56.7]} 44. Kf2 {[%clk 0:02:04.4]} 44... e3+ {[%clk
0:00:52.3]} 45. Kg2 {[%clk 0:02:03.1]} 45... e2 {[%clk 0:00:45.8]} 46. g8=Q
{[%clk 0:02:02.4]} 46... e1=Q {[%clk 0:00:45.9]} 47. Rd5+ {[%clk 0:01:52.3]}
47... Kc3 {[%clk 0:00:40.5]} 48. Qg7+ {[%clk 0:01:47.5]} 48... Kc2 {[%clk
0:00:27.4]} 49. Qg6+ {[%clk 0:01:43.1]} 49... Kc3 {[%clk 0:00:27]} 50. Qf6+
{[%clk 0:01:42.1]} 50... Kc2 {[%clk 0:00:26.4]} 51. Qf5+ {[%clk 0:01:41]} 51...
Kc3 {[%clk 0:00:24.6]} 52. Qf6+ {[%clk 0:01:40]} 52... Kc2 {[%clk 0:00:24.3]}
53. Qf5+ {[%clk 0:01:39.5]} 53... Kc3 {[%clk 0:00:24.3]} 1/2-1/2

[Event "*** Titled Tuesday Blitz"]
[Site "Chess.com"]
[Date "2020.12.29"]
[Round "8"]
[White "Schack-Hugo"]
[Black "Xeslu"]
[Result "0-1"]
[WhiteElo "2168"]
[BlackElo "2302"]
[TimeControl "180+1"]
[EndTime "11:26:55 PST"]
[Termination "Xeslu won by resignation"]

1. e4 {[%clk 0:03:00.9]} 1... c5 {[%clk 0:02:59.5]} 2. Nf3 {[%clk 0:03:01]} 2...
Nc6 {[%clk 0:02:59.3]} 3. d4 {[%clk 0:03:01.2]} 3... cxd4 {[%clk 0:03:00.2]} 4.
Nxd4 {[%clk 0:03:01.8]} 4... Nf6 {[%clk 0:03:00.8]} 5. Nc3 {[%clk 0:03:02.2]}
5... d6 {[%clk 0:03:01.3]} 6. Bg5 {[%clk 0:03:00.2]} 6... e6 {[%clk 0:03:00.5]}
7. f4 {[%clk 0:02:59.6]} 7... Qb6 {[%clk 0:02:57.8]} 8. Nb3 {[%clk 0:02:59]}
8... h6 {[%clk 0:02:56.6]} 9. Bxf6 {[%clk 0:02:57.2]} 9... gxf6 {[%clk
0:02:57.5]} 10. Qd2 {[%clk 0:02:55.4]} 10... h5 {[%clk 0:02:55.1]} 11. O-O-O
{[%clk 0:02:53.5]} 11... a6 {[%clk 0:02:55.1]} 12. Kb1 {[%clk 0:02:46.1]} 12...
Be7 {[%clk 0:02:53.4]} 13. Bd3 {[%clk 0:02:06.2]} 13... Bd7 {[%clk 0:02:52.8]}
14. f5 {[%clk 0:02:06]} 14... Ne5 {[%clk 0:02:51.1]} 15. Ne2 {[%clk 0:01:38.9]}
15... Rc8 {[%clk 0:02:50.2]} 16. Ned4 {[%clk 0:01:32.3]} 16... h4 {[%clk
0:02:35]} 17. g3 {[%clk 0:01:08.3]} 17... h3 {[%clk 0:02:30.8]} 18. Rhg1 {[%clk
0:01:06]} 18... Nc4 {[%clk 0:02:23.9]} 19. Bxc4 {[%clk 0:01:04.9]} 19... Rxc4
{[%clk 0:02:24.8]} 20. Qd3 {[%clk 0:01:03.8]} 20... Qc7 {[%clk 0:02:17.1]} 21.
g4 {[%clk 0:00:44]} 21... a5 {[%clk 0:02:10]} 22. Nxa5 {[%clk 0:00:41.8]} 22...
Rxd4 {[%clk 0:02:09.5]} 23. Qxd4 {[%clk 0:00:39.9]} 23... Qxa5 {[%clk
0:02:09.7]} 24. g5 {[%clk 0:00:20.3]} 24... Qe5 {[%clk 0:02:04.7]} 25. Qxe5
{[%clk 0:00:17.6]} 25... dxe5 {[%clk 0:01:55.4]} 26. g6 {[%clk 0:00:12]} 26...
fxg6 {[%clk 0:01:50.3]} 27. fxg6 {[%clk 0:00:09.5]} 27... Bc6 {[%clk 0:01:49.1]}
28. g7 {[%clk 0:00:03.7]} 28... Rg8 {[%clk 0:01:48.6]} 29. Rd3 {[%clk
0:00:03.4]} 29... Bxe4 {[%clk 0:01:45]} 30. Rxh3 {[%clk 0:00:02.7]} 30... Kf7
{[%clk 0:01:41.2]} 31. Rhg3 {[%clk 0:00:02.7]} 31... f5 {[%clk 0:01:37.9]} 32.
Re3 {[%clk 0:00:02.5]} 32... Bc5 {[%clk 0:01:36.6]} 33. Ree1 {[%clk 0:00:02]}
33... Bxg1 {[%clk 0:01:36.4]} 34. Rxg1 {[%clk 0:00:02.3]} 34... Rxg7 {[%clk
0:01:35]} 35. Rd1 {[%clk 0:00:02.9]} 35... Kf6 {[%clk 0:01:33.6]} 36. Kc1 {[%clk
0:00:02.6]} 36... f4 {[%clk 0:01:33.7]} 37. c3 {[%clk 0:00:02.6]} 37... Rg2
{[%clk 0:01:33.2]} 38. Rd2 {[%clk 0:00:02.7]} 38... Rxd2 {[%clk 0:01:31.5]} 39.
Kxd2 {[%clk 0:00:03]} 39... Bd5 {[%clk 0:01:30.9]} 40. Ke2 {[%clk 0:00:03.2]}
40... Bxa2 {[%clk 0:01:30.6]} 41. b4 {[%clk 0:00:03.1]} 41... e4 {[%clk
0:01:29.1]} 42. Kf2 {[%clk 0:00:03.1]} 42... Bc4 {[%clk 0:01:29.2]} 0-1

[Event "*** Titled Tuesday Blitz"]
[Site "Chess.com"]
[Date "2020.12.29"]
[Round "8"]
[White "Training_Day"]
[Black "yuki_chess123"]
[Result "0-1"]
[WhiteElo "2378"]
[BlackElo "2218"]
[TimeControl "180+1"]
[EndTime "11:26:57 PST"]
[Termination "yuki_chess123 won by resignation"]

1. d4 {[%clk 0:03:00.9]} 1... g6 {[%clk 0:02:57.7]} 2. e4 {[%clk 0:02:55.2]}
2... Bg7 {[%clk 0:02:58.1]} 3. Nc3 {[%clk 0:02:48.8]} 3... c6 {[%clk 0:02:58.5]}
4. f4 {[%clk 0:02:46.6]} 4... d5 {[%clk 0:02:58.5]} 5. e5 {[%clk 0:02:47]} 5...
Nh6 {[%clk 0:02:57.8]} 6. Nf3 {[%clk 0:02:46]} 6... f6 {[%clk 0:02:58.1]} 7. Be3
{[%clk 0:02:28.9]} 7... Bg4 {[%clk 0:02:57.3]} 8. Be2 {[%clk 0:02:26.1]} 8...
O-O {[%clk 0:02:56.9]} 9. O-O {[%clk 0:02:24.7]} 9... Nd7 {[%clk 0:02:56.9]} 10.
h3 {[%clk 0:02:17.1]} 10... Bxf3 {[%clk 0:02:56.7]} 11. Bxf3 {[%clk 0:02:17.6]}
11... Nf5 {[%clk 0:02:56.5]} 12. Bf2 {[%clk 0:02:17.5]} 12... fxe5 {[%clk
0:02:57.4]} 13. fxe5 {[%clk 0:02:16.8]} 13... e6 {[%clk 0:02:58.3]} 14. Ne2
{[%clk 0:02:05.2]} 14... Bh6 {[%clk 0:02:56.4]} 15. Qd3 {[%clk 0:01:59.9]} 15...
c5 {[%clk 0:02:46.4]} 16. c3 {[%clk 0:01:54.8]} 16... c4 {[%clk 0:02:46.5]} 17.
Qc2 {[%clk 0:01:45.9]} 17... Ne3 {[%clk 0:02:41.4]} 18. Bxe3 {[%clk 0:01:45.5]}
18... Bxe3+ {[%clk 0:02:42.3]} 19. Kh1 {[%clk 0:01:44.9]} 19... Qh4 {[%clk
0:02:40.2]} 20. Bg4 {[%clk 0:01:41.2]} 20... Rae8 {[%clk 0:02:36.3]} 21. Ng1
{[%clk 0:01:15.9]} 21... Kg7 {[%clk 0:02:01.7]} 22. Nf3 {[%clk 0:01:03.2]} 22...
Qg3 {[%clk 0:01:37]} 23. Rae1 {[%clk 0:00:12.1]} 23... Bf4 {[%clk 0:01:09.2]}
24. Qf2 {[%clk 0:00:11.8]} 24... h5 {[%clk 0:01:08]} 25. Bxh5 {[%clk 0:00:09.8]}
25... Qxf2 {[%clk 0:00:59.7]} 26. Rxf2 {[%clk 0:00:09.7]} 26... Bg3 {[%clk
0:00:59.9]} 27. Ref1 {[%clk 0:00:02]} 27... Bxf2 {[%clk 0:00:53.5]} 0-1

[Event "*** Titled Tuesday Blitz"]
[Site "Chess.com"]
[Date "2020.12.29"]
[Round "8"]
[White "esapunov"]
[Black "Ajedrez_con_German"]
[Result "1-0"]
[WhiteElo "2703"]
[BlackElo "2527"]
[TimeControl "180+1"]
[EndTime "11:27:02 PST"]
[Termination "esapunov won on time"]

1. c4 {[%clk 0:03:00.9]} 1... c5 {[%clk 0:02:57.5]} 2. Nf3 {[%clk 0:03:00.2]}
2... b6 {[%clk 0:02:51]} 3. Nc3 {[%clk 0:02:55.2]} 3... e6 {[%clk 0:02:46.5]} 4.
d4 {[%clk 0:02:50.5]} 4... cxd4 {[%clk 0:02:39.6]} 5. Nxd4 {[%clk 0:02:50.4]}
5... Bb7 {[%clk 0:02:38.7]} 6. Ndb5 {[%clk 0:02:47.8]} 6... d6 {[%clk
0:02:03.4]} 7. Bf4 {[%clk 0:02:46.4]} 7... e5 {[%clk 0:01:58.5]} 8. Bg3 {[%clk
0:02:46.2]} 8... a6 {[%clk 0:01:54.3]} 9. Na3 {[%clk 0:02:45.6]} 9... Nf6 {[%clk
0:01:52.9]} 10. Nc2 {[%clk 0:02:42.6]} 10... Be7 {[%clk 0:01:44.1]} 11. e4
{[%clk 0:02:41.2]} 11... Nxe4 {[%clk 0:01:31.4]} 12. Qf3 {[%clk 0:02:35.4]}
12... Nc5 {[%clk 0:01:29.3]} 13. Qg4 {[%clk 0:02:34.3]} 13... O-O {[%clk
0:01:21.2]} 14. Ne3 {[%clk 0:02:34.2]} 14... g6 {[%clk 0:01:07.7]} 15. Qd1
{[%clk 0:02:21.9]} 15... Nbd7 {[%clk 0:01:01.1]} 16. Be2 {[%clk 0:02:17.8]}
16... Nf6 {[%clk 0:00:58.3]} 17. O-O {[%clk 0:02:15.2]} 17... Rc8 {[%clk
0:00:54.4]} 18. Rc1 {[%clk 0:02:14.1]} 18... Qd7 {[%clk 0:00:46.8]} 19. Bf3
{[%clk 0:02:01.8]} 19... Bxf3 {[%clk 0:00:40.8]} 20. Qxf3 {[%clk 0:01:59.4]}
20... Ne6 {[%clk 0:00:39.5]} 21. Ncd5 {[%clk 0:01:51.4]} 21... Nxd5 {[%clk
0:00:39.3]} 22. Nxd5 {[%clk 0:01:51.2]} 22... Nd4 {[%clk 0:00:37.6]} 23. Qd3
{[%clk 0:01:45.8]} 23... Rc6 {[%clk 0:00:35.2]} 24. f4 {[%clk 0:01:43.3]} 24...
Nf5 {[%clk 0:00:17.4]} 25. fxe5 {[%clk 0:01:36.1]} 25... Nxg3 {[%clk 0:00:16.7]}
26. hxg3 {[%clk 0:01:36.3]} 26... Qe6 {[%clk 0:00:14.6]} 27. exd6 {[%clk
0:01:31.6]} 27... Bxd6 {[%clk 0:00:12.7]} 28. Rce1 {[%clk 0:01:26.7]} 28... Bc5+
{[%clk 0:00:13]} 29. Kh2 {[%clk 0:01:25.5]} 29... Qg4 {[%clk 0:00:13.3]} 30. Re4
{[%clk 0:01:21.3]} 30... Qg5 {[%clk 0:00:08.1]} 31. Qf3 {[%clk 0:01:17.1]} 31...
Re6 {[%clk 0:00:06.4]} 32. Rh4 {[%clk 0:01:11.8]} 32... f5 {[%clk 0:00:05.1]}
33. b4 {[%clk 0:01:05.4]} 33... Rfe8 {[%clk 0:00:05.5]} 34. bxc5 {[%clk
0:01:04.2]} 1-0